bitfinex-derivatives/quotes_SOLF0:USTF0_20220104
["timestamp","ask_amount","ask_price","bid_price","bid_amount"]
[1641279581232,12.60506149,167.89,167.86,27.66479]
[1641279583034,12.60506149,167.9,167.86,31.86648963]
[1641279583234,9.92382779,167.91,167.86,31.86648963]
[1641279583433,9.92382779,167.91,167.86,4.20169963]
[1641279584134,12.60529502,167.89,167.85,10.20169963]
[1641279584734,1.94255537,167.89,167.86,6.46082482]
[1641279585535,27.66479,167.9,167.86,6.46082482]
[1641279585737,12.60516289,167.89,167.86,6.46082482]
[1641279586137,1.94264617,167.89,167.86,6.46082482]
[1641279586738,12.60528862,167.89,167.86,6.46082482]
[1641279587540,1.94264659,167.89,167.86,6.46082482]
[1641279588239,12.60531308,167.89,167.86,6.46082482]
[1641279589038,30.6748,167.92,167.86,6.46082482]
[1641279589340,12.60464834,167.9,167.87,4.20169963]
[1641279589941,9.92313003,167.91,167.87,4.20169963]
[1641279590143,9.92313003,167.91,167.87,4.647]
[1641279590941,14.5464557,167.91,167.87,8.84869963]
[1641279591740,12.60457513,167.9,167.87,8.84869963]
[1641279591940,12.60457513,167.9,167.87,4.647]
[1641279592140,12.60457513,167.9,167.86,4.20169963]
[1641279592741,30.6748,167.92,167.86,4.20169963]
[1641279593042,1.93640457,167.91,167.85,6.0]
[1641279596548,1.93640457,167.91,167.86,6.45371194]
[1641279597146,30.6748,167.92,167.86,4.20169963]
[1641279597350,30.6748,167.92,167.85,10.20169963]
[1641279597948,1.93610869,167.91,167.85,10.20169963]
[1641279598148,1.93610869,167.91,167.86,30.66479]
[1641279598349,1.93610869,167.91,167.86,32.37579]
[1641279599550,1.93610869,167.91,167.86,36.57748963]
[1641279600351,3.0,167.92,167.86,32.37579]
[1641279600552,32.9835,167.92,167.86,27.66479]
[1641279600952,1.93598198,167.91,167.86,27.66479]
[1641279601855,14.50041348,167.91,167.87,6.4606396]
[1641279602954,12.5644315,167.9,167.87,6.4606396]
[1641279603555,14.54048885,167.91,167.87,6.4606396]
[1641279604155,12.60450687,167.9,167.87,6.4606396]
[1641279604356,30.66479,167.89,167.87,6.4606396]
[1641279604560,3.0,167.88,167.85,6.0]
[1641279604960,3.0,167.86,167.83,12.59993095]
[1641279605159,3.0,167.84,167.83,12.59993095]
[1641279605762,3.0,167.84,167.79,12.59993095]
[1641279606064,3.0,167.83,167.79,12.59993095]
[1641279606263,27.66479,167.81,167.79,12.59993095]
[1641279606562,5.26,167.81,167.79,12.59993095]
[1641279607062,5.26,167.81,167.75,21.27012028]
[1641279607462,12.60697452,167.82,167.75,21.27012028]
[1641279608163,27.66479,167.83,167.75,21.27012028]
[1641279608965,43.27499874,167.83,167.75,21.27012028]
[1641279609265,40.27499874,167.83,167.75,21.27012028]
[1641279609465,40.27499874,167.83,167.75,24.27012028]
[1641279609667,12.61020874,167.83,167.75,30.22712028]
[1641279609870,12.61020874,167.82,167.76,3.0]
[1641279610067,12.61020874,167.82,167.77,3.0]
[1641279610273,12.61020874,167.82,167.78,27.66479]
[1641279610868,70.15359874,167.85,167.77,12.59993095]
[1641279611868,57.54339,167.85,167.77,12.59993095]
[1641279612070,12.60901581,167.84,167.77,12.59993095]
[1641279612669,57.54339,167.85,167.77,12.59993095]
[1641279612869,57.54339,167.85,167.76,12.59993095]
[1641279613269,60.54339,167.85,167.76,12.59993095]
[1641279613571,3.0,167.84,167.76,12.59993095]
[1641279613769,3.0,167.83,167.76,12.59993095]
[1641279613973,3.0,167.83,167.76,21.27006616]
[1641279614270,3.0,167.82,167.76,21.27006616]
[1641279614471,40.27392574,167.81,167.74,12.59993095]
[1641279615371,3.0,167.79,167.74,12.59993095]
[1641279615572,5.25,167.79,167.74,12.59993095]
[1641279616074,43.27616945,167.81,167.73,21.27015818]
[1641279616272,5.886,167.79,167.73,21.27015818]
[1641279616473,5.886,167.79,167.72,27.66479]
[1641279618074,3.0,167.78,167.72,27.66479]
[1641279618276,3.0,167.77,167.72,27.66479]
[1641279618476,5.886,167.79,167.72,27.66479]
[1641279621180,27.66479,167.81,167.72,35.29179]
[1641279621385,27.66479,167.81,167.73,5.9562809]
[1641279621982,27.66479,167.81,167.72,27.66479]
[1641279622180,33.42379,167.81,167.72,27.66479]
[1641279622979,12.61137945,167.8,167.72,40.26472095]
[1641279623781,12.61137945,167.8,167.73,21.14431033]
[1641279623980,45.17017945,167.8,167.73,21.14431033]
[1641279624980,45.17017945,167.8,167.73,12.59993095]
[1641279625180,12.61137945,167.79,167.72,46.22153405]
[1641279625980,12.61137945,167.8,167.73,21.14431599]
[1641279626581,46.03516945,167.81,167.73,21.14431599]
[1641279629386,12.61137945,167.8,167.72,83.64053405]
[1641279635495,12.61137945,167.8,167.73,3.0]
[1641279635695,12.61137945,167.8,167.72,83.64053405]
[1641279638499,12.61137945,167.8,167.72,77.68372095]
[1641279644910,14.66184508,167.8,167.73,2.15200074]
[1641279645916,14.66184508,167.8,167.74,8.0]
[1641279646315,14.66184508,167.8,167.74,11.0]
[1641279646516,2.05046563,167.81,167.74,23.59993095]
[1641279646915,2.05046563,167.81,167.74,26.5558571]
[1641279647116,2.05046563,167.81,167.76,3.0]
[1641279647316,12.61137945,167.82,167.76,3.0]
[1641279647618,12.61137945,167.82,167.77,3.0]
[1641279647817,12.61137945,167.82,167.77,16.369]
[1641279648016,12.61137945,167.82,167.77,13.369]
[1641279648317,7.945e-05,167.85,167.79,5.95433029]
[1641279648517,7.945e-05,167.85,167.79,8.95433029]
[1641279648717,7.945e-05,167.85,167.8,27.66479]
[1641279648918,7.945e-05,167.85,167.8,35.66479]
[1641279649119,8.21950992,167.87,167.8,35.66479]
[1641279649319,30.3258,167.88,167.8,35.66479]
[1641279649320,30.3258,167.88,167.8,38.66479]
[1641279649521,27.66479,167.91,167.83,3.0]
[1641279649719,33.689692,167.92,167.83,5.779]
[1641279650122,8.21950992,167.9,167.83,5.779]
[1641279650721,8.21950992,167.9,167.85,27.66479]
[1641279651120,8.21950992,167.92,167.85,27.66479]
[1641279652627,64.943892,167.93,167.85,27.66479]
[1641279652824,31.2542,167.93,167.85,27.66479]
[1641279653023,3.36200654,167.92,167.85,27.66479]
[1641279653323,31.2542,167.93,167.85,27.66479]
[1641279658531,7.91271009,167.92,167.85,27.66479]
[1641279660433,7.91271009,167.92,167.8,69.354482]
[1641279660632,7.91271009,167.92,167.8,108.32705777]
[1641279661031,7.91271009,167.92,167.81,3.0]
[1641279661232,7.91271009,167.92,167.86,3.0]
[1641279661432,7.91271009,167.92,167.86,8.281]
[1641279661833,31.2542,167.93,167.86,5.281]
[1641279662434,31.2542,167.93,167.87,8.0]
[1641279662833,31.2542,167.93,167.87,35.66479]
[1641279665135,7.91268204,167.92,167.87,39.86687832]
[1641279666235,31.2542,167.93,167.87,39.86687832]
[1641279666436,31.2542,167.93,167.87,35.66479]
[1641279667035,31.2542,167.93,167.87,39.86687832]
[1641279667635,31.2542,167.93,167.87,45.86687832]
[1641279670241,31.2542,167.93,167.87,41.66479]
[1641279670438,31.2542,167.93,167.87,46.94779]
[1641279670639,31.2542,167.93,167.87,51.14987832]
[1641279671539,31.2542,167.93,167.87,54.14987832]
[1641279672340,31.2542,167.93,167.89,4.20208832]
[1641279672540,33.689692,167.99,167.91,3.0]
[1641279672740,33.0365,167.98,167.91,5.263]
[1641279672940,33.0365,167.98,167.92,27.66479]
[1641279673541,33.689692,167.99,167.94,3.0]
[1641279673743,7.8939945,167.99,167.97,3.0]
[1641279673941,7.8939945,167.99,167.97,9.702]
[1641279674142,1.8939945,167.99,167.97,9.702]
[1641279674344,33.689692,168.01,167.98,3.0]
[1641279674542,50.52890988,168.06,167.99,3.0]
[1641279674745,50.52890988,168.06,168.04,3.0]
[1641279674942,84.06811396,168.06,168.04,7.489]
[1641279675143,33.53920408,168.06,168.04,4.489]
[1641279675743,33.53920408,168.06,168.04,7.489]
[1641279675942,33.53920408,168.06,168.04,4.489]
[1641279676345,31.2697,168.1,168.04,4.489]
[1641279676546,33.53920408,168.13,168.04,4.489]
[1641279676745,36.53920408,168.13,168.04,4.489]
[1641279676946,3.35866667,168.12,168.06,27.66479]
[1641279678146,3.35866667,168.14,168.06,27.66479]
[1641279678346,3.0,168.12,168.05,4.20208832]
[1641279678545,12.57315175,168.11,168.04,4.20208832]
[1641279678948,18.55815175,168.11,168.04,4.20208832]
[1641279679246,6.35866667,168.1,168.04,4.20208832]
[1641279679445,12.57315175,168.08,168.02,4.20208832]
[1641279679846,3.35866667,168.07,168.02,4.20208832]
[1641279680046,15.93181842,168.07,168.01,4.20208832]
[1641279680645,3.35866667,168.06,168.01,4.20208832]
[1641279681246,3.35866667,168.06,168.03,4.20208832]
[1641279681447,3.35866667,168.06,168.03,8.33008832]
[1641279681648,3.35866667,168.08,168.03,8.33008832]
[1641279683149,12.57315175,168.07,168.03,8.33008832]
[1641279683851,3.35866667,168.06,168.03,8.33008832]
[1641279684952,12.59605765,168.08,168.05,31.86687832]
[1641279685451,12.59564877,168.09,168.05,31.86687832]
[1641279686152,3.35865289,168.08,168.06,4.20208832]
[1641279686554,9.72265289,168.08,168.06,4.20208832]
[1641279686955,15.95511433,168.07,168.04,4.20208832]
[1641279687354,3.35865289,168.06,168.04,4.20208832]
[1641279687755,3.35865289,168.06,168.02,8.0]
[1641279688355,3.35865289,168.1,168.02,11.0]
[1641279688561,3.35865289,168.1,168.02,8.0]
[1641279688755,3.0,168.07,168.02,8.0]
[1641279689055,3.35865289,168.06,168.02,8.0]
[1641279689456,6.156,168.06,168.0,27.66479]
[1641279690158,3.35865289,168.05,167.95,10.15075136]
[1641279690362,3.35865289,168.05,167.95,4.20208832]
[1641279690556,3.0,168.03,167.95,4.20208832]
[1641279691060,27.66479,168.01,167.92,37.81642615]
[1641279691257,25.72675297,168.01,167.92,10.15163615]
[1641279691457,3.35865289,168.0,167.92,10.15163615]
[1641279691860,3.35865289,168.0,167.92,5.94954783]
[1641279692256,30.66479,168.08,167.92,8.94954783]
[1641279692458,30.66479,168.08,167.93,8.0]
[1641279692660,3.0,168.06,167.93,13.94919388]
[1641279692861,27.66479,168.04,167.94,27.66479]
[1641279693660,3.35961277,168.03,167.95,8.0]
[1641279694363,3.0,168.06,167.95,12.20208832]
[1641279694762,3.35960953,168.05,167.95,12.20208832]
[1641279694963,3.35960953,168.05,167.98,27.66479]
[1641279695165,3.35960953,168.06,167.98,34.17779]
[1641279695765,3.35960953,168.07,167.98,34.17779]
[1641279696368,3.35960953,168.07,168.05,4.20208832]
[1641279696567,3.35960953,168.07,168.05,10.47608832]
[1641279697468,3.35960953,168.07,168.06,6.86193814]
[1641279697869,3.35960953,168.08,168.06,6.86193814]
[1641279698268,1.53886104,168.07,168.06,6.86193814]
[1641279698667,4.89847057,168.07,168.06,6.86193814]
[1641279699068,1.53886104,168.07,168.06,6.86193814]
[1641279700170,1.53886104,168.07,168.06,2.65984982]
[1641279700374,13.95763247,168.13,168.06,2.65984982]
[1641279700973,16.95763247,168.13,168.06,2.65984982]
[1641279701174,3.35867755,168.12,168.06,2.65984982]
[1641279701774,3.35867755,168.12,168.09,4.19789417]
[1641279702377,1.53886104,168.11,168.09,4.19789417]
[1641279702577,4.53886104,168.11,168.09,4.19789417]
[1641279702874,3.35867755,168.1,168.09,4.19789417]
[1641279703776,4.89753859,168.1,168.08,4.19789417]
[1641279704275,3.35867755,168.09,168.08,4.19789417]
[1641279704477,4.89753859,168.09,168.08,4.19789417]
[1641279705175,3.35867755,168.09,168.08,4.19789417]
[1641279705575,3.35867755,168.11,168.08,4.19789417]
[1641279705976,1.59875846,168.09,168.08,4.19789417]
[1641279706576,4.95743601,168.09,168.08,4.19789417]
[1641279707176,3.35867755,168.09,168.08,4.19789417]
[1641279707678,4.95743601,168.09,168.07,4.19789417]
[1641279708279,1.59875846,168.09,168.07,4.19789417]
[1641279708780,1.59875846,168.08,168.07,4.19789417]
[1641279709283,40.08356143,168.11,168.07,4.19789417]
[1641279709583,27.66479,168.11,168.07,4.19789417]
[1641279709983,3.35893843,168.1,168.07,4.19789417]
[1641279710886,3.35893843,168.1,168.06,4.19789417]
[1641279711688,27.66479,168.14,168.08,4.19789417]
[1641279712089,3.35852165,168.13,168.08,4.19789417]
[1641279712290,4.95213763,168.13,168.08,4.19789417]
[1641279712888,3.35852165,168.12,168.08,4.19789417]
[1641279713290,4.95213763,168.12,168.06,4.19789417]
[1641279713690,3.35852165,168.11,168.06,4.19789417]
[1641279714090,3.35852165,168.11,168.07,4.19789417]
[1641279714694,3.35852165,168.13,168.07,4.19789417]
[1641279715292,1.59383908,168.12,168.07,4.19789417]
[1641279715993,3.35852165,168.11,168.07,4.19789417]
[1641279716195,8.92552165,168.11,168.07,4.19789417]
[1641279716596,3.35852165,168.1,168.07,4.19789417]
[1641279717694,1.59890862,168.09,168.07,4.19789417]
[1641279718495,1.59890862,168.09,168.08,4.19789417]
[1641279719095,14.01768005,168.11,168.07,4.19789417]
[1641279719594,17.01768005,168.11,168.07,4.19789417]
[1641279719994,14.01768005,168.11,168.07,4.19789417]
[1641279720197,14.01768005,168.11,168.1,4.19789417]
[1641279720394,4.59890862,168.11,168.06,12.57315175]
[1641279720593,5.59890862,168.11,168.03,2.59214013]
[1641279720796,3.0,168.08,168.03,2.59214013]
[1641279720995,27.66479,168.06,168.03,2.59214013]
[1641279722001,27.66479,168.06,168.0,9.70308552]
[1641279722002,27.66479,168.06,168.01,2.59214013]
[1641279722601,27.66479,168.06,168.02,2.59214013]
[1641279723300,27.66479,168.06,168.03,2.59214013]
[1641279724000,27.66479,168.06,168.04,2.59214013]
[1641279724203,32.9469,168.09,168.04,7.61514013]
[1641279724400,33.53920408,168.13,168.05,2.59214013]
[1641279724601,3.0,168.11,168.05,2.59214013]
[1641279724800,3.0,168.12,168.05,2.59214013]
[1641279725000,27.66479,168.1,168.05,2.59214013]
[1641279725502,27.66479,168.1,168.06,2.59214013]
[1641279726305,9.21530651,168.09,168.05,6.719]
[1641279727104,1.74988125,168.08,168.05,6.719]
[1641279727706,1.74988125,168.08,168.05,12.719]
[1641279727906,1.74988125,168.07,168.05,12.719]
[1641279728307,1.74988125,168.06,168.05,12.719]
[1641279738322,7.46542526,168.1,168.05,12.719]
[1641279738524,33.53920408,168.12,168.06,3.0]
[1641279738722,1e-08,168.12,168.07,3.0]
[1641279739124,53.52890988,168.17,168.11,27.66479]
[1641279739323,3.0,168.17,168.11,31.82879]
[1641279739525,33.8629,168.19,168.11,4.164]
[1641279739723,3.35818152,168.16,168.11,4.164]
[1641279740324,3.0,168.15,168.08,35.66479]
[1641279740526,3.0,168.15,168.08,8.0]
[1641279740827,3.0,168.17,168.08,8.0]
[1641279741026,3.35818152,168.14,168.1,27.66479]
[1641279741226,3.35818152,168.14,168.08,8.0]
[1641279741425,9.85718152,168.16,168.08,8.0]
[1641279741826,3.35818152,168.15,168.08,14.289]
[1641279742628,3.35818152,168.16,168.08,14.289]
[1641279742928,3.0,168.15,168.08,14.289]
[1641279743128,30.66479,168.15,168.08,14.289]
[1641279743329,27.66479,168.15,168.08,14.289]
[1641279743529,3.35818152,168.14,168.08,14.289]
[1641279750731,3.35818152,168.14,168.08,8.0]
[1641279751332,40.25714702,168.15,168.08,20.59235702]
[1641279752333,27.66479,168.15,168.08,20.59235702]
[1641279752834,40.25716434,168.15,168.09,0.67163117]
[1641279753235,12.59237434,168.15,168.09,0.67163117]
[1641279755336,40.25716434,168.15,168.09,0.67163117]
[1641279756138,27.66479,168.15,168.09,0.67163117]
[1641279757638,27.66479,168.15,168.09,6.67163117]
[1641279758444,27.66479,168.15,168.1,0.67163117]
[1641279761047,12.59237434,168.16,168.1,0.67163117]
[1641279761946,3.35788393,168.15,168.1,3.67163117]
[1641279762147,12.59237434,168.16,168.11,3.0]
[1641279762345,12.59237434,168.16,168.1,0.67163117]
[1641279762546,40.25716434,168.18,168.12,0.67163117]
[1641279762747,40.25716434,168.18,168.12,6.36363117]
[1641279762946,40.25716434,168.18,168.12,5.692]
[1641279763147,3.35751986,168.17,168.12,5.692]
[1641279763548,3.35751986,168.17,168.13,0.67163117]
[1641279764547,3.35751986,168.18,168.12,0.67163117]
[1641279764748,3.35751986,168.18,168.12,6.87863117]
[1641279765448,3.35751986,168.18,168.13,0.67163117]
[1641279766352,3.35751986,168.18,168.12,0.67163117]
[1641279766552,15.9498942,168.18,168.12,0.67163117]
[1641279767151,3.35751986,168.17,168.12,0.67163117]
[1641279769855,3.35751986,168.18,168.12,0.67163117]
[1641279770759,3.35751986,168.18,168.12,4.76763117]
[1641279771256,3.35751986,168.18,168.13,0.67163117]
[1641279772057,3.35751986,168.18,168.13,5.966]
[1641279772458,3.35751986,168.18,168.14,0.67163117]
[1641279772959,3.35751986,168.18,168.12,0.67163117]
[1641279774360,6.35751986,168.18,168.12,0.67163117]
[1641279774561,3.0,168.17,168.12,0.67163117]
[1641279774762,3.35751986,168.17,168.12,0.67163117]
[1641279775263,27.66479,168.16,168.1,0.67163117]
[1641279775662,3.35751986,168.15,168.1,0.67163117]
[1641279778966,1.39368847,168.14,168.11,2.80327642]
[1641279779164,1.39368847,168.14,168.11,9.11727642]
[1641279779565,1.39368847,168.18,168.12,3.47490759]
[1641279779965,1.39368847,168.18,168.13,0.67163117]
[1641279780166,3.3574562,168.17,168.13,0.67163117]
[1641279781169,3.3574562,168.17,168.14,4.19659719]
[1641279781768,1.39368847,168.16,168.15,4.86822836]
[1641279781972,1.39368847,168.16,168.15,11.39222836]
[1641279782669,4.7511393,168.16,168.15,14.19550478]
[1641279783273,4.7511393,168.16,168.15,11.39222836]
[1641279783472,4.7511393,168.16,168.15,7.19563117]
[1641279784976,4.7511393,168.16,168.15,0.67163117]
[1641279785376,4.7511393,168.16,168.15,3.117e-05]
[1641279785978,7.7511393,168.16,168.1,12.59235702]
[1641279786179,3.0,168.12,168.09,6.0]
[1641279786380,5.887,168.12,168.09,6.0]
[1641279787080,1.39368847,168.11,168.09,6.0]
[1641279787280,4.75231644,168.11,168.1,0.67172559]
[1641279787680,26.41710644,168.12,168.06,0.67172559]
[1641279788382,39.00948078,168.12,168.06,0.67172559]
[1641279788983,26.41710644,168.12,168.06,0.67172559]
[1641279790785,26.41710644,168.12,168.06,13.26326583]
[1641279791187,26.41710644,168.12,168.07,0.67172559]
[1641279791387,26.41710644,168.12,168.07,6.66672559]
[1641279791987,26.41710644,168.12,168.08,0.67172559]
[1641279793191,39.00948078,168.12,168.08,0.67172559]
[1641279793390,39.00948078,168.12,168.06,0.67172559]
[1641279793589,39.00948078,168.12,168.08,6.0]
[1641279794190,39.00948078,168.12,168.09,0.67172559]
[1641279797491,3.35857117,168.11,168.09,0.67172559]
[1641279797693,3.0,168.1,168.09,0.67172559]
[1641279797894,3.35857117,168.11,168.09,0.67172559]
[1641279798294,6.35857117,168.11,168.09,0.67172559]
[1641279798493,18.95094551,168.11,168.08,6.0]
[1641279798694,24.02694551,168.11,168.08,6.0]
[1641279798893,3.35857117,168.1,168.08,6.0]
[1641279799294,6.35857117,168.1,168.03,12.59154024]
[1641279799496,3.35857117,168.1,168.03,12.59154024]
[1641279799693,27.66479,168.07,168.03,12.59154024]
[1641279800093,27.66479,168.07,168.04,0.67179401]
[1641279800897,27.66479,168.07,168.03,0.67179401]
[1641279801096,33.95979,168.07,168.03,0.67179401]
[1641279802096,3.35970493,168.06,168.03,0.67179401]
[1641279802498,27.66479,168.07,168.03,0.67179401]
[1641279803498,27.66479,168.07,168.01,0.67179401]
[1641279804898,27.66479,168.07,168.01,13.26333425]
[1641279805299,27.66479,168.07,168.01,16.26333425]
[1641279805501,12.59237434,168.08,168.02,0.67179401]
[1641279805698,12.59237434,168.08,168.02,37.61258401]
[1641279806198,12.59237434,168.08,168.03,0.67179401]
[1641279806597,37.6585,168.09,168.03,23.53084708]
[1641279806999,37.6585,168.09,168.04,0.67179401]
[1641279808499,37.6585,168.09,168.03,0.67179401]
[1641279808900,12.59237434,168.1,168.03,0.67179401]
[1641279809800,27.66479,168.09,168.03,13.26333425]
[1641279810201,27.66479,168.09,168.04,0.67179401]
[1641279810401,40.25716434,168.09,168.04,0.67179401]
[1641279811200,3.35936032,168.08,168.03,6.67179401]
[1641279811700,3.35936032,168.08,168.04,0.67179401]
[1641279812102,15.95631861,168.08,168.04,0.67179401]
[1641279812501,12.59695829,168.08,168.04,0.67179401]
[1641279814306,3.35945483,168.07,168.04,0.67179401]
[1641279814907,15.95641312,168.07,168.04,0.67179401]
[1641279815505,12.59695829,168.07,168.04,0.67179401]
[1641279816407,27.66479,168.09,168.04,0.67179401]
[1641279816608,3.0,168.06,168.04,0.67179401]
[1641279816809,9.398,168.06,168.04,0.67179401]
[1641279817110,6.398,168.06,168.04,0.67179401]
[1641279818109,27.66479,168.05,168.04,0.67179401]
[1641279819613,33.00979,168.05,168.04,0.67179401]
[1641279821917,27.66479,168.05,168.04,0.67179401]
[1641279824023,31.02462165,168.05,168.04,0.67179401]
[1641279824423,27.66479,168.05,168.04,0.67179401]
[1641279824823,43.62322253,168.05,168.04,0.67179401]
[1641279825025,43.62322253,168.05,168.03,1.86009401]
[1641279825625,40.263433,168.05,168.03,1.86009401]
[1641279826327,27.66479,168.05,168.03,1.86009401]
[1641279826928,61.2432942,168.09,168.03,1.86009401]
[1641279827127,12.59800107,168.06,168.03,8.54009401]
[1641279828129,14.13403699,168.07,168.03,8.54009401]
[1641279828330,27.66479,168.04,168.03,8.54009401]
[1641279828532,14.13403699,168.07,168.03,8.54009401]
[1641279828929,14.13403699,168.07,168.03,9.21190114]
[1641279829132,1.5363789,168.08,168.04,2.66232144]
[1641279829329,1.5363789,168.08,168.04,3.33412857]
[1641279829729,43.26089103,168.09,168.05,0.67180713]
[1641279829931,12.59610103,168.07,168.05,0.67180713]
[1641279830130,12.59610103,168.07,168.04,0.67180713]
[1641279830331,27.66479,168.06,168.04,0.67180713]
[1641279831032,33.59579,168.06,168.04,0.67180713]
[1641279831632,26.87684428,168.06,168.04,0.67180713]
[1641279832531,3.35976174,168.05,168.04,0.67180713]
[1641279832935,4.95137973,168.05,168.04,0.67180713]
[1641279833132,4.95137973,168.05,168.03,1.86009401]
[1641279833631,3.35976174,168.05,168.03,1.86009401]
[1641279833833,20.94584428,168.06,168.03,1.86009401]
[1641279834435,1.53143881,168.05,168.03,1.86009401]
[1641279834634,4.89119734,168.05,168.03,1.86009401]
[1641279835135,1.53143881,168.05,168.03,1.86009401]
[1641279835334,20.94584428,168.06,168.03,1.86009401]
[1641279836036,4.89129725,168.05,168.03,1.86009401]
[1641279836638,1.53148449,168.05,168.03,1.86009401]
[1641279836937,1.53148449,168.04,168.03,1.86009401]
[1641279837436,20.94584428,168.06,168.03,4.52235038]
[1641279837437,1.53148449,168.05,168.03,4.52235038]
[1641279837637,1.53148449,168.05,168.03,5.19425839]
[1641279838039,1.53148449,168.05,168.04,0.67190801]
[1641279840344,1.53148449,168.05,168.03,1.86009401]
[1641279845554,1.53148449,168.05,167.99,51.05384024]
[1641279846154,1.53148449,168.05,168.0,0.67187379]
[1641279846453,1.53148449,168.05,168.03,4.19901497]
[1641279847055,1.53148449,168.05,168.04,0.67187379]
[1641279847354,1.53148449,168.05,168.04,4.87088876]
[1641279848056,1.53148449,168.05,168.04,7.47273676]
[1641279850264,1.53148449,168.05,168.04,0.67187379]
[1641279853768,7.05840404,168.08,168.04,0.67187379]
[1641279854169,4.46030404,168.08,168.04,3.67187379]
[1641279854471,33.5785042,168.11,168.04,0.67187379]
[1641279854670,42.3112,168.14,168.04,0.67187379]
[1641279855070,27.66479,168.12,168.04,0.67187379]
[1641279855471,3.0,168.1,168.04,0.67187379]
[1641279855671,3.0,168.1,168.04,4.84811323]
[1641279855873,9.785,168.1,168.04,4.17623944]
[1641279856173,3.35845775,168.09,168.05,0.67187379]
[1641279857072,3.35845775,168.09,168.03,0.67187379]
[1641279857273,27.66479,168.08,168.03,0.67187379]
[1641279859977,27.66479,168.08,168.03,4.84811323]
[1641279860376,27.66479,168.08,168.04,0.67187379]
[1641279860876,27.66479,168.08,168.06,4.17623944]
[1641279861277,27.66479,168.08,168.07,0.67187379]
[1641279863282,27.66479,168.08,168.07,4.84811323]
[1641279863883,27.66479,168.08,168.07,0.67187379]
[1641279865285,27.66479,168.08,168.07,4.84811323]
[1641279866688,27.66479,168.08,168.07,0.67187379]
[1641279866888,30.66479,168.08,168.07,0.67187379]
[1641279867088,30.66479,168.08,168.05,4.17623944]
[1641279867288,3.0,168.07,168.05,4.17623944]
[1641279867687,3.0,168.07,168.0,38.1799]
[1641279867889,3.0,168.07,167.99,27.66479]
[1641279868193,3.0,168.07,168.0,0.67176373]
[1641279868389,42.3233,168.07,168.0,0.67176373]
[1641279869292,39.3233,168.07,168.0,0.67176373]
[1641279870590,42.3233,168.07,168.0,0.67176373]
[1641279870790,39.3233,168.07,168.0,0.67176373]
[1641279871490,42.3233,168.07,168.0,0.67176373]
[1641279872391,3.0,168.06,168.0,0.67176373]
[1641279872590,39.3233,168.07,168.0,0.67176373]
[1641279872793,3.0,168.06,168.0,0.67176373]
[1641279873192,39.3233,168.07,168.0,0.67176373]
[1641279873792,39.3233,168.07,168.0,5.75076373]
[1641279874294,39.3233,168.07,168.01,0.67176373]
[1641279875095,3.0,168.05,168.01,0.67176373]
[1641279875296,39.3233,168.07,168.01,0.67176373]
[1641279875595,39.3233,168.07,168.0,0.67176373]
[1641279876296,42.3233,168.07,168.0,0.67176373]
[1641279876596,39.3233,168.07,168.0,0.67176373]
[1641279876996,39.3233,168.07,167.99,0.67176373]
[1641279877498,27.66479,168.06,167.99,0.67176373]
[1641279877799,27.66479,168.06,167.99,10.68026426]
[1641279878197,27.66479,168.06,168.0,0.67176373]
[1641279879797,27.66479,168.06,168.0,5.07776373]
[1641279880299,27.66479,168.06,168.01,0.67176373]
[1641279880498,39.3233,168.07,168.01,0.67176373]
[1641279881403,27.66479,168.06,168.01,0.67176373]
[1641279882003,39.3233,168.07,168.01,0.67176373]
[1641279883506,27.66479,168.06,168.01,0.67176373]
[1641279884108,39.3233,168.07,168.01,0.67176373]
[1641279884908,39.3233,168.07,168.01,13.23054881]
[1641279885310,39.3233,168.07,168.02,0.67176373]
[1641279885508,27.66479,168.06,168.02,0.67176373]
[1641279886411,39.3233,168.07,168.02,0.67176373]
[1641279888209,27.66479,168.06,168.02,0.67176373]
[1641279888509,27.66479,168.06,168.02,13.23054881]
[1641279889010,27.66479,168.06,168.03,0.67176373]
[1641279890316,48.1833,168.07,168.03,0.67176373]
[1641279890916,27.66479,168.06,168.03,0.67176373]
[1641279891117,27.66479,168.06,168.02,0.67176373]
[1641279891919,20.94769396,168.06,168.01,13.23054881]
[1641279892117,20.94769396,168.06,168.01,0.67176373]
[1641279892417,20.94769396,168.06,168.02,0.67176373]
[1641279892616,31.25369396,168.06,168.0,12.55878508]
[1641279892819,27.66479,168.01,168.0,12.55878508]
[1641279893019,32.21179,168.01,167.97,33.5785042]
[1641279893916,32.21179,168.01,167.92,41.358]